bitfinex/quotes_SOLUSD_20250514
["timestamp","ask_amount","ask_price","bid_price","bid_amount"]
[1747204703324,19.07149084,183.52,183.44,18.36]
[1747204703325,13.14704331,183.5,183.44,18.36]
[1747204703614,32.22165227,183.49,183.44,18.36]
[1747204703809,13.14704331,183.48,183.44,18.36]
[1747204704108,19.07460896,183.49,183.4,44.34]
[1747204704412,13.14704331,183.46,183.4,26.0]
[1747204704800,13.14704331,183.46,183.39,18.36]
[1747204705002,13.14704331,183.43,183.29,6.1033]
[1747204705193,13.14704331,183.4,183.33,18.36]
[1747204705390,13.14704331,183.39,183.33,18.36]
[1747204705594,5.45315737,183.38,183.34,26.0]
[1747204705796,18.60020068,183.38,183.33,18.36]
[1747204706405,5.45315737,183.38,183.34,26.0]
[1747204707432,37.40605081,183.38,183.25,18.36]
[1747204707768,18.60139042,183.34,183.25,18.36]
[1747204708101,5.45434711,183.34,183.25,18.36]
[1747204708497,5.45434711,183.34,183.28,26.0]
[1747204708814,36.98020068,183.38,183.26,0.28432314]
[1747204709019,50.61309412,183.38,183.28,26.0]
[1747204709210,13.14704331,183.35,183.26,2.79067865]
[1747204709792,13.14704331,183.34,183.26,2.79067865]
[1747204710119,13.14704331,183.35,183.28,26.0]
[1747204710322,13.14704331,183.35,183.26,2.79067865]
[1747204711322,5.45375218,183.36,183.26,6.61037602]
[1747204712534,5.45345476,183.37,183.26,6.61037602]
[1747204713222,19.08709166,183.37,183.26,6.61037602]
[1747204714515,1.5113,183.36,183.26,2.79067865]
[1747204714715,18.64964886,183.35,183.26,2.79067865]
[1747204715247,31.79669217,183.35,183.26,2.79067865]
[1747204715746,5.45434711,183.34,183.25,44.36]
[1747204716111,19.09021489,183.34,183.25,18.36]
[1747204716443,31.79669217,183.32,183.25,18.36]
[1747204717938,5.45523975,183.31,183.25,18.36]
[1747204718714,13.14704331,183.28,183.21,17.17350057]
[1747204719348,14.70904331,183.27,183.21,17.17350057]
[1747204719843,18.60377145,183.26,183.21,17.17350057]
[1747204720025,32.24559181,183.26,183.21,17.17350057]
[1747204720430,19.0985485,183.26,183.21,17.17350057]
[1747204720735,13.14704331,183.24,183.2,18.38]
[1747204720915,19.0985485,183.26,183.14,24.8469]
[1747204720916,13.14704331,183.23,183.14,18.38]
[1747204721624,13.14704331,183.22,183.15,26.0]
[1747204721813,5.45821734,183.21,183.15,26.0]
[1747204722126,5.45821734,183.21,183.14,18.38]
[1747204722328,5.45821734,183.21,183.15,26.0]
[1747204722526,5.45821734,183.21,183.14,18.38]
[1747204722717,18.60526065,183.21,183.14,18.38]
[1747204722920,13.14704331,183.2,183.14,18.38]
[1747204723240,5.45821734,183.21,183.14,18.38]
[1747204723442,5.45821734,183.21,183.15,26.0]
[1747204724740,18.933972,183.25,183.14,18.38]
[1747204724741,5.45732372,183.24,183.17,26.0]
[1747204728460,18.64964886,183.23,183.17,26.0]
[1747204728960,5.45791944,183.22,183.17,26.0]
[1747204729133,13.14704331,183.21,183.17,26.0]
[1747204729326,19.10271804,183.22,183.17,26.0]
[1747204729327,32.24976135,183.22,183.17,26.0]
[1747204730825,18.64964886,183.21,183.17,26.0]
[1747204731433,31.79669217,183.21,183.15,26.0]
[1747204731633,13.14704331,183.2,183.15,26.0]
[1747204731838,13.14704331,183.19,183.15,26.0]
[1747204732035,13.14704331,183.2,183.15,26.0]
[1747204732834,5.45881325,183.19,183.15,26.0]
[1747204735654,31.79669217,183.16,183.14,53.693533]
[1747204735841,32.08101531,183.15,183.14,53.693533]
[1747204737064,55.74102077,183.15,183.14,53.693533]
[1747204737359,55.74102077,183.15,183.14,52.026933]
[1747204737929,55.74102077,183.15,183.14,50.360333]
[1747204737930,68.88806408,183.15,183.14,50.360333]
[1747204738937,68.88806408,183.15,183.14,40.360533]
[1747204738938,94.88806408,183.15,183.14,40.360533]
[1747204739160,18.933972,183.14,182.99,18.5239]
[1747204739439,13.14704331,183.05,182.99,18.26]
[1747204739646,31.36704331,183.06,182.99,26.0]
[1747204740139,18.22,183.06,182.97,2.73658116]
[1747204740339,18.64964886,183.08,182.99,26.0]
[1747204740779,18.64964886,183.08,182.96,224.28900607]
[1747204741054,31.36704331,183.09,182.99,26.0]
[1747204741260,5.46179474,183.09,183.03,26.0]
[1747204741564,10.0,183.2,183.03,26.0]
[1747204741565,13.14704331,183.11,183.03,26.0]
[1747204741876,55.981755,183.13,183.03,26.0]
[1747204742063,18.64964886,183.11,183.03,26.0]
[1747204742565,5.46060175,183.13,183.03,26.0]
[1747204742770,37.25729392,183.13,183.03,26.0]
[1747204743144,13.14704331,183.12,183.03,26.0]
[1747204743365,13.14704331,183.1,183.03,26.0]
[1747204743852,18.64964886,183.12,183.03,29.82443103]
[1747204744464,18.60764506,183.13,183.03,29.82443103]
[1747204744783,5.46060175,183.13,183.04,1.5688]
[1747204744954,18.60764506,183.13,183.04,1.5688]
[1747204745295,18.60764506,183.13,183.07,26.0]
[1747204745967,5.46060175,183.13,183.07,26.0]
[1747204746579,5.45914098,183.18,183.09,26.0]
[1747204746747,1.648,183.25,183.09,26.0]
[1747204746748,5.45732372,183.24,183.13,26.0]
[1747204746949,5.45732372,183.24,183.13,27.6245]
[1747204747162,5.45732372,183.24,183.15,26.0]
[1747204747783,5.45732372,183.24,183.15,32.1709]
[1747204748584,5.45702592,183.25,183.15,35.9927722]
[1747204750976,19.09959072,183.25,183.15,35.9927722]
[1747204751859,5.45702592,183.25,183.16,0.14216157]
[1747204752169,32.24369717,183.28,183.19,26.0]
[1747204752376,32.24369717,183.28,183.19,44.26]
[1747204754685,19.09665386,183.28,183.19,44.26]
[1747204754982,19.09665386,183.28,183.19,48.08104471]
[1747204755155,19.09665386,183.28,183.2,1.6538]
[1747204756483,13.63809281,183.32,183.21,3.96291371]
[1747204756688,13.63809281,183.32,183.24,26.0]
[1747204756892,13.63809281,183.32,183.25,18.12]
[1747204757191,5.45464462,183.33,183.25,18.12]
[1747204759396,19.09125619,183.33,183.25,18.12]
[1747204761980,32.2382995,183.33,183.25,18.12]
[1747204762187,19.09125619,183.33,183.25,18.12]
[1747204763195,32.2382995,183.33,183.25,18.12]
[1747204763385,5.45464462,183.33,183.28,26.0]
[1747204764287,18.60168793,183.33,183.28,26.0]
[1747204764600,32.2382995,183.33,183.28,26.0]
[1747204765797,19.09125619,183.33,183.28,26.0]
[1747204766302,31.79669217,183.32,183.25,18.12]
[1747204766495,13.14704331,183.31,183.26,26.0]
[1747204767095,19.09125619,183.33,183.26,26.0]
[1747204767676,18.64964886,183.37,183.29,1.6428]
[1747204769100,5.45375218,183.36,183.3,26.0]
[1747204769319,18.64964886,183.35,183.3,26.0]
[1747204769485,31.79669217,183.35,183.3,26.0]
[1747204769810,31.79669217,183.35,183.29,1.6428]
[1747204770177,13.14704331,183.34,183.29,1.6428]
[1747204771297,5.45464462,183.33,183.29,1.6428]
[1747204772576,5.45375218,183.36,183.29,1.6428]
[1747204773499,13.14704331,183.35,183.29,1.6428]
[1747204773685,13.14704331,183.33,183.29,1.6428]
[1747204773883,13.14704331,183.32,183.25,19.7735]
[1747204774194,13.14704331,183.31,183.26,26.0]
[1747204774587,13.14704331,183.32,183.26,26.0]
[1747204774798,19.09333914,183.31,183.26,26.0]
[1747204776592,32.24038245,183.31,183.26,26.0]
[1747204777187,19.09333914,183.31,183.26,26.0]
[1747204777594,5.45523975,183.31,183.26,26.0]
[1747204777792,5.45523975,183.31,183.27,0.5]
[1747204778391,5.45523975,183.31,183.28,26.0]
[1747204779003,13.63632867,183.34,183.28,26.0]
[1747204779205,36.66964886,183.33,183.25,1.6535]
[1747204779394,13.14704331,183.29,183.25,1.6535]
[1747204779596,36.66964886,183.33,183.25,1.6535]
[1747204779785,13.14704331,183.31,183.25,1.6535]
[1747204780199,36.66964886,183.33,183.25,1.6535]
[1747204780398,18.64964886,183.33,183.25,1.6535]
[1747204780593,31.79669217,183.33,183.25,1.6535]
[1747204780911,31.79669217,183.33,183.26,26.0]
[1747204781991,19.09229761,183.32,183.25,27.6535]
[1747204783413,18.64964886,183.29,183.25,1.6535]
[1747204783609,8.24895124,183.28,183.25,1.6535]
[1747204783800,18.933972,183.31,183.24,26.0]
[1747204784000,18.64964886,183.31,183.24,26.0]
[1747204784190,26.8986001,183.31,183.24,26.0]
[1747204784516,19.09229761,183.32,183.24,26.0]
[1747204785705,5.45494217,183.32,183.25,26.0]
[1747204785906,5.45494217,183.32,183.26,1.6246]
[1747204786199,5.45494217,183.32,183.3,26.0]
[1747204787297,19.08964381,183.35,183.3,26.0]
[1747204788112,18.64964886,183.34,183.27,17.98]
[1747204788324,13.19204389,183.32,183.27,17.98]
[1747204789023,13.19204389,183.31,183.27,17.98]
[1747204789226,5.45583501,183.29,183.26,1.6246]
[1747204790516,19.09542254,183.29,183.25,26.0]
[1747204790713,32.28746643,183.29,183.25,26.0]
[1747204791517,19.09542254,183.29,183.25,26.0]
[1747204794308,13.63958753,183.29,183.25,26.0]
[1747204795815,19.09542254,183.29,183.25,26.0]
[1747204799928,13.63958753,183.29,183.25,26.0]
[1747204800634,5.45553737,183.3,183.25,26.0]
[1747204801532,13.19204389,183.29,183.25,26.0]
[1747204802144,5.45613269,183.28,183.25,26.0]
[1747204804063,13.63712674,183.33,183.25,26.0]
[1747204804233,5.45434711,183.34,183.25,29.81990403]
[1747204804626,18.646391,183.34,183.25,29.81990403]
[1747204807958,32.28225878,183.34,183.25,29.81990403]
[1747204808342,32.28225878,183.34,183.25,26.0]
[1747204809262,32.28225878,183.34,183.22,19.6427]
[1747204809263,8.25186086,183.29,183.22,19.6427]
[1747204809459,8.25186086,183.29,183.25,26.0]
[1747204809831,27.34936726,183.27,183.22,19.6427]
[1747204810031,8.25186086,183.24,183.17,26.2331]
[1747204810449,8.25186086,183.24,183.2,26.0]
[1747204811642,5.45762156,183.23,183.2,26.0]
[1747204812364,8.25186086,183.21,183.17,19.5949]
[1747204812673,8.25186086,183.21,183.16,26.0]
[1747204812962,37.75132434,183.23,183.16,26.0]
[1747204813151,8.25186086,183.17,183.13,1.5585]
[1747204814048,5.45940929,183.17,183.13,1.5585]
[1747204815569,32.32684021,183.17,183.13,1.5585]
[1747204815740,13.2189077,183.15,183.09,6.1471]
[1747204815942,13.2189077,183.14,183.09,6.1471]
[1747204816244,32.33101384,183.13,183.08,27.58]
[1747204816757,19.11210614,183.13,183.08,27.58]
[1747204817165,32.33101384,183.13,183.08,27.58]
[1747204817547,13.2189077,183.12,183.07,17.88]
[1747204817754,13.2189077,183.11,183.06,26.0]
[1747204817948,13.2189077,183.11,183.04,1.5247]
[1747204818146,5.46149645,183.1,183.04,1.5247]
[1747204818348,18.68040415,183.1,183.04,1.5247]
[1747204818549,19.11523757,183.1,183.04,27.5247]
[1747204818959,32.33414527,183.1,183.04,27.5247]
[1747204820275,13.2189077,183.09,183.04,26.0]
[1747204820646,13.2189077,183.08,183.04,26.0]
[1747204820862,31.86855656,183.07,183.04,26.0]
[1747204821148,31.86855656,183.07,183.02,17.88]
[1747204821149,13.2189077,183.07,183.02,17.88]
[1747204821449,13.2189077,183.07,183.02,26.0]
[1747204821844,0.28432314,183.08,183.01,1.5788]
[1747204822044,18.64964886,183.09,183.01,1.5788]
[1747204822247,18.64964886,183.09,183.02,26.0]
[1747204822248,5.46209307,183.08,183.02,26.0]
[1747204823568,13.2189077,183.07,183.01,1.5788]
[1747204824272,5.46268982,183.06,183.01,1.5788]
[1747204825390,5.46149645,183.1,183.02,26.0]
[1747204825673,37.33005301,183.1,183.02,26.0]
[1747204826043,18.64964886,183.09,183.02,26.0]
[1747204826244,31.86855656,183.09,183.02,26.0]
[1747204826444,5.46209307,183.08,183.02,26.0]
[1747204827367,19.11732575,183.08,183.02,26.0]
[1747204827572,32.33623345,183.08,183.02,26.0]
[1747204828076,5.46209307,183.08,183.02,26.0]
[1747204828469,5.46149645,183.1,183.02,26.0]
[1747204829574,19.11523757,183.1,183.02,26.0]
[1747204831573,19.11523757,183.1,183.02,43.9]
[1747204831786,13.2189077,183.05,183.01,1.5788]
[1747204832185,13.2189077,183.06,183.01,1.5788]
[1747204832589,37.33154481,183.05,183.01,1.5788]
[1747204832965,50.98901544,183.05,183.01,1.5788]
[1747204834682,37.77010774,183.05,183.01,1.5788]
[1747204835963,5.46298825,183.05,183.02,26.0]
[1747204836184,13.65565145,183.08,183.02,26.0]
[1747204836388,5.46239143,183.07,183.02,26.0]
[1747204836600,5.46239143,183.07,183.04,26.0]
[1747204837091,5.46239143,183.07,183.03,17.9]
[1747204837294,5.46239143,183.07,183.03,43.9]
[1747204838363,5.46179474,183.09,183.03,43.9]
[1747204838767,18.64964886,183.08,183.03,17.9]
[1747204838998,26.91764775,183.08,183.03,17.9]
[1747204839376,18.64964886,183.08,183.03,17.9]
[1747204840198,5.46179474,183.09,183.03,17.9]
[1747204840581,5.46149645,183.1,183.03,17.9]
[1747204840781,5.46030359,183.14,183.03,21.72444671]
[1747204840978,19.11106257,183.14,183.03,21.72444671]
[1747204842072,5.46030359,183.14,183.06,26.0]
[1747204842276,5.46030359,183.14,183.08,1.597]
[1747204842477,5.45970735,183.16,183.08,1.597]
[1747204842698,24.10935621,183.16,183.08,1.597]
[1747204842996,46.02662349,183.16,183.08,1.597]
[1747204843180,18.64964886,183.13,183.08,1.597]
[1747204843601,18.64964886,183.15,183.08,1.597]
[1747204844581,18.64964886,183.13,183.08,1.597]
[1747204846607,5.46088636,183.13,183.08,1.597]
[1747204848990,18.64964886,183.13,183.08,1.597]
[1747204850187,5.46000546,183.15,183.08,1.597]
[1747204858014,18.64964886,183.14,183.08,1.597]
[1747204858813,5.46000546,183.15,183.08,5.42046037]
[1747204859920,5.45970735,183.16,183.08,5.42046037]
[1747204861826,5.45949516,183.17,183.12,26.0]
[1747204863792,5.45911125,183.18,183.12,26.0]
[1747204864796,5.45821734,183.21,183.12,29.82256026]
[1747204870129,5.45821734,183.21,183.13,26.0]
[1747204871001,5.45821734,183.21,183.15,6.4557]
[1747204871204,5.45821734,183.21,183.16,26.0]
[1747204871519,5.45762156,183.23,183.16,26.0]
[1747204872717,13.72562045,183.23,183.16,26.0]
[1747204873232,26.91764775,183.22,183.16,26.0]
[1747204874702,5.45821734,183.21,183.16,26.0]
[1747204878345,5.45762156,183.23,183.18,26.0]
[1747204878831,5.45702592,183.25,183.19,1.5216]
[1747204879045,5.4564304,183.27,183.19,1.5216]
[1747204879553,17.76,183.32,183.19,1.5216]
[1747204879554,5.45553737,183.3,183.26,26.0]
[1747204880217,5.45434711,183.34,183.27,1.5216]
[1747204880404,5.45434711,183.34,183.27,27.5216]
[1747204881503,5.45434711,183.34,183.27,30.27183407]
[1747204882412,19.08926222,183.35,183.27,30.27183407]
[1747204883619,26.91764775,183.34,183.28,26.0]
[1747204884546,19.09125619,183.33,183.28,26.0]
[1747204886524,27.35925508,183.33,183.28,26.0]
[1747204887418,18.64964886,183.32,183.27,1.5216]
[1747204887726,26.91764775,183.3,183.25,26.0]
[1747204888553,8.26799889,183.29,183.24,17.76]
[1747204888835,19.09646442,183.28,183.24,17.76]
[1747204889030,8.26799889,183.26,183.22,1.6082]
[1747204889213,8.26799889,183.26,183.22,27.6082]
[1747204889729,8.26799889,183.25,183.22,1.6082]
[1747204889934,8.26799889,183.23,183.19,17.74]
[1747204890621,8.26799889,183.22,183.19,17.74]
[1747204890934,5.45821734,183.21,183.19,17.74]
[1747204891125,26.91764775,183.2,183.16,1.606]
[1747204891327,8.26799889,183.19,183.14,24.3773]
[1747204892339,8.26799889,183.19,183.14,17.74]
[1747204892728,5.45940929,183.17,183.14,17.74]
[1747204894032,24.10816414,183.2,183.14,17.74]
[1747204894951,5.45828604,183.21,183.14,17.74]
[1747204895240,5.45828604,183.21,183.17,26.0]
[1747204896224,5.45791944,183.22,183.17,26.0]
[1747204898539,26.91764775,183.21,183.15,26.0]
[1747204898763,8.26799889,183.19,183.14,17.74]
[1747204899728,18.64964886,183.21,183.14,17.74]
[1747204899951,18.64964886,183.19,183.14,17.74]
[1747204900627,18.64964886,183.23,183.15,26.0]
[1747204901051,18.64964886,183.24,183.15,26.0]
[1747204901259,26.91764775,183.24,183.15,26.0]
[1747204901937,32.37497147,183.24,183.15,26.0]
[1747204902136,8.26799889,183.23,183.15,26.0]
[1747204902762,8.26799889,183.23,183.15,29.8219598]
[1747204904057,5.45791944,183.22,183.15,29.8219598]
[1747204904262,5.45758074,183.24,183.15,29.8219598]
[1747204904426,5.45758074,183.24,183.17,26.0]
[1747204904625,5.45758074,183.24,183.15,29.8219598]
[1747204904626,5.45672814,183.26,183.21,26.0]
[1747204904825,8.26799889,183.29,183.21,26.0]
[1747204905045,18.64964886,183.29,183.23,26.0]
[1747204905748,24.10548387,183.29,183.23,26.0]
[1747204905936,32.37348276,183.29,183.23,26.0]
[1747204906525,24.10548387,183.29,183.23,26.0]
[1747204908961,5.45556687,183.3,183.23,29.82024893]
[1747204909271,5.45556687,183.3,183.24,1.6123]
[1747204910176,5.45523975,183.31,183.27,26.0]
[1747204911854,5.45523975,183.31,183.25,26.0]
[1747204912765,5.45523975,183.31,183.27,26.0]
[1747204914854,5.45523975,183.31,183.26,17.68]
[1747204915263,5.45523975,183.31,183.26,43.68]
[1747204915867,24.10488861,183.31,183.26,43.68]
[1747204916081,32.3728875,183.31,183.26,43.68]
[1747204916246,46.01098689,183.31,183.26,43.68]
[1747204918279,5.45583501,183.29,183.26,43.68]
[1747204920357,37.74402965,183.3,183.26,43.68]
[1747204921152,46.01202854,183.3,183.26,17.68]
[1747204921473,46.01202854,183.3,183.21,17.68]
[1747204921474,8.26799889,183.27,183.21,17.68]
[1747204921677,8.26799889,183.26,183.21,17.68]
[1747204921883,8.26799889,183.26,183.22,26.0]
[1747204922253,8.26799889,183.26,183.21,17.68]
[1747204922481,5.45702592,183.25,183.21,17.68]
[1747204922660,5.45702592,183.25,183.22,26.0]
[1747204922860,5.45702592,183.25,183.21,17.68]
[1747204924067,5.45702592,183.25,183.22,26.0]
[1747204924468,13.63918493,183.3,183.22,26.0]
[1747204924684,18.64964886,183.28,183.22,26.0]
[1747204924881,8.26799889,183.25,183.21,17.68]
[1747204925197,8.26799889,183.25,183.15,17.68]
[1747204925198,8.26799889,183.24,183.19,26.0]
[1747204925519,8.26799889,183.23,183.19,26.0]
[1747204926587,5.45791944,183.22,183.19,26.0]
[1747204928393,8.26799889,183.21,183.16,17.68]
[1747204928602,5.45851528,183.2,183.16,17.68]
[1747204928895,26.91764775,183.19,183.16,17.68]
[1747204929067,8.26799889,183.18,183.12,2.78966931]
[1747204929286,18.64964886,183.17,183.11,17.68]
[1747204929470,18.64964886,183.17,183.14,26.0]
[1747204929796,18.64964886,183.17,183.11,17.68]
[1747204929971,18.64964886,183.17,183.14,26.0]
[1747204931176,5.45970735,183.16,183.14,26.0]
[1747204931501,5.45881325,183.19,183.14,26.0]
[1747204932595,13.72681214,183.19,183.14,26.0]
[1747204934275,21.91242652,183.23,183.14,29.82218883]
[1747204934478,5.45791944,183.22,183.14,26.0]
[1747204935206,8.26799889,183.21,183.14,26.0]
[1747204935412,27.37071693,183.22,183.14,26.0]
[1747204936589,5.45791944,183.22,183.14,29.82211343]
[1747204936776,5.45791944,183.22,183.15,26.0]
[1747204936982,5.45791944,183.22,183.14,3.82211343]
[1747204937296,5.45791944,183.22,183.15,26.0]
[1747204937787,13.72591833,183.22,183.15,26.0]
[1747204938810,5.45762156,183.23,183.15,26.0]
[1747204939113,8.26799889,183.22,183.15,26.0]
[1747204939998,8.26799889,183.21,183.15,26.0]
[1747204940401,26.91764775,183.22,183.15,26.0]
[1747204940599,8.26799889,183.2,183.14,26.0]
[1747204941106,5.45881325,183.19,183.14,26.0]
[1747204943479,8.26799889,183.18,183.14,26.0]
[1747204943680,8.26799889,183.17,183.11,17.68]
[1747204943875,26.91764775,183.18,183.11,17.68]
[1747204944081,37.75549524,183.19,183.14,26.0]
[1747204944082,5.45881325,183.19,183.14,26.0]
[1747204944886,13.72681214,183.19,183.12,26.0]
[1747204945100,5.45881325,183.19,183.12,26.0]
[1747204945700,5.45881325,183.19,183.12,28.72893473]
[1747204945907,8.26799889,183.19,183.12,28.72893473]
[1747204946114,8.26799889,183.17,183.12,26.0]
[1747204947397,8.26799889,183.18,183.12,26.0]
[1747204948906,19.10793251,183.17,183.12,26.0]
[1747204949088,8.26799889,183.15,183.11,17.68]
[1747204949291,26.91764775,183.16,183.11,17.68]
[1747204950621,5.46000546,183.15,183.11,17.68]
[1747204955716,5.45851528,183.2,183.14,26.0]
[1747204957394,5.45821734,183.21,183.16,26.0]
[1747204957897,5.45821734,183.21,183.15,26.0]
[1747204958327,5.45821734,183.21,183.14,26.0]
[1747204958818,5.45821734,183.21,183.16,26.0]
[1747204959019,19.10199608,183.23,183.16,26.0]
[1747204960119,27.36999497,183.23,183.15,26.0]
[1747204962220,8.26799889,183.22,183.15,26.0]
[1747204963315,27.36999497,183.23,183.15,26.0]
[1747204964210,27.36999497,183.23,183.14,29.8222102]
[1747204968928,5.45762156,183.23,183.14,29.8222102]
[1747204969110,13.72562045,183.23,183.14,29.8222102]
[1747204974310,8.26799889,183.21,183.15,26.0]
[1747204974528,8.26799889,183.21,183.13,5.40298319]
[1747204975233,8.26799889,183.21,183.17,26.0]
[1747204976825,19.10167548,183.23,183.17,26.0]
[1747204977026,27.36967437,183.23,183.17,26.0]
[1747204978640,5.45821734,183.21,183.17,26.0]
[1747204988931,19.10167548,183.23,183.17,26.0]
[1747204989337,19.10167548,183.23,183.17,43.66]
[1747204989338,27.36967437,183.23,183.17,43.66]
[1747204990249,5.45672814,183.26,183.18,0.28432314]
[1747204990555,9.83049889,183.3,183.21,26.0]
[1747204990726,8.26799889,183.29,183.21,26.0]
[1747204991125,13.7238339,183.29,183.21,29.82071284]
[1747204992227,13.7238339,183.29,183.21,26.0]
[1747204992950,13.7238339,183.29,183.21,29.82073845]
[1747204993151,5.45583501,183.29,183.21,29.82073845]
[1747204994740,5.45583501,183.29,183.23,26.0]
[1747204995051,5.45583501,183.29,183.24,17.66]
[1747204995648,5.45553737,183.3,183.24,17.66]
[1747204996541,8.26799889,183.29,183.24,17.66]
[1747204997753,5.45613269,183.28,183.24,17.66]
[1747204998850,5.45553737,183.3,183.24,17.66]
[1747205000336,5.45553737,183.3,183.24,21.48011354]
[1747205000842,39.52689986,183.31,183.27,26.0]
[1747205001657,44.98227597,183.31,183.27,26.0]
[1747205003234,53.25027486,183.31,183.25,26.0]
[1747205003438,53.25027486,183.31,183.24,35.32]
[1747205003751,53.25027486,183.31,183.25,26.0]
[1747205004153,44.98227597,183.31,183.25,26.0]
[1747205004458,58.62037536,183.31,183.25,26.0]
[1747205007235,66.88837425,183.31,183.25,26.0]
[1747205007959,58.62037536,183.31,183.25,26.0]
[1747205008155,66.88837425,183.31,183.25,26.0]
[1747205008340,58.62037536,183.31,183.25,26.0]
[1747205008735,66.88837425,183.31,183.25,26.0]
[1747205009059,58.62037536,183.31,183.25,26.0]
[1747205009762,44.98227597,183.31,183.25,26.0]
[1747205009949,44.98227597,183.31,183.27,26.0]
[1747205013079,8.26799889,183.29,183.21,17.64]
[1747205013361,8.26799889,183.28,183.24,26.0]
[1747205013864,8.26799889,183.28,183.21,17.64]
[1747205014565,19.0975064,183.27,183.22,26.0]
[1747205014738,19.0975064,183.27,183.21,17.64]
[1747205015137,19.0975064,183.27,183.22,26.0]
[1747205016586,19.0975064,183.27,183.21,17.64]
[1747205016587,8.26799889,183.25,183.21,17.64]
[1747205018561,5.45732372,183.24,183.21,17.64]
[1747205020456,13.72532261,183.24,183.21,17.64]
[1747205021067,5.45732372,183.24,183.21,17.64]
[1747205021365,13.72532261,183.24,183.21,17.64]
[1747205022162,8.26799889,183.23,183.21,17.64]
[1747205022369,8.26799889,183.22,183.19,26.0]
[1747205022656,5.45821734,183.21,183.19,26.0]
[1747205023463,13.72595589,183.22,183.19,26.0]
[1747205023670,5.457957,183.22,183.19,26.0]
[1747205026792,8.26799889,183.2,183.09,2.76880648]
[1747205027009,8.26799889,183.15,183.07,26.09900736]
[1747205027388,8.26799889,183.16,183.1,26.0]
[1747205028999,20.27654886,183.17,183.1,26.0]
[1747205029383,8.26799889,183.16,183.1,26.0]
[1747205029808,13.72776595,183.16,183.1,29.27684979]
[1747205030685,8.26799889,183.15,183.1,29.27684979]
[1747205031089,13.72801533,183.15,183.1,29.27684979]
[1747205031293,13.72801533,183.15,183.1,26.0]
[1747205032394,17.78216157,183.2,183.12,26.0]
[1747205032395,5.45911125,183.18,183.12,26.0]
[1747205033081,5.45911125,183.18,183.12,29.27653866]
[1747205033285,13.72711014,183.18,183.12,29.27653866]
[1747205034493,8.26799889,183.19,183.12,29.27653866]
[1747205035404,8.26799889,183.2,183.12,29.27653866]
[1747205035588,8.26799889,183.2,183.13,17.64]
[1747205035783,5.45825795,183.21,183.13,17.64]
[1747205036010,13.72625684,183.21,183.13,17.64]
[1747205036315,8.26799889,183.19,183.13,17.64]
[1747205036609,8.26799889,183.16,183.12,26.0]
[1747205036811,8.26799889,183.16,183.11,26.0]
[1747205037400,5.46000546,183.15,183.13,26.0]
[1747205040493,8.26799889,183.16,183.13,26.0]
[1747205041423,8.26799889,183.16,183.1,17.64]
[1747205041604,8.26799889,183.16,183.11,26.0]
[1747205042014,8.26799889,183.18,183.11,26.0]
[1747205042401,8.26799889,183.17,183.11,26.0]
[1747205043033,5.45970735,183.16,183.11,26.0]
[1747205043905,8.26799889,183.17,183.11,26.0]
[1747205043906,8.26799889,183.18,183.11,26.0]
[1747205044337,5.45881325,183.19,183.13,26.0]
[1747205045658,5.45851528,183.2,183.13,29.27633587]
[1747205045998,13.72651417,183.2,183.13,26.0]
[1747205046499,8.26799889,183.17,183.13,26.0]
[1747205046921,8.26799889,183.18,183.13,26.0]
[1747205048518,5.45940929,183.17,183.13,26.0]
[1747205049908,8.26799889,183.16,183.09,2.73935589]
[1747205050109,8.26799889,183.14,183.1,26.0]
[1747205050613,5.46060175,183.13,183.1,26.0]
[1747205055024,19.11147362,183.14,183.1,26.0]
[1747205057443,8.26799889,183.13,183.09,17.64]
[1747205057625,8.26799889,183.12,183.09,17.64]
[1747205059039,5.46119818,183.11,183.09,17.64]